fUST/lending_fUST_20241223
["ID","MTS","AMOUNT","RATE_DAILY","PERIOD"]
[346347854,1734903043680,-500.0,0.00015068,2]
[346347856,1734903043691,-500.0,0.00015068,2]
[346347858,1734903043700,-500.0,0.00015068,2]
[346347860,1734903043710,-500.0,0.00015068,2]
[346347862,1734903043719,-165.95231218,0.00015068,2]
[346347864,1734903043730,-1230.55,0.00015068,2]
[346347866,1734903043740,-2645.89,0.00015068,2]
[346347868,1734903043749,-500.0,0.00015068,2]
[346347870,1734903043759,-951.06,0.00015068,2]
[346347872,1734903043769,-500.0,0.00015068,2]
[346347874,1734903043778,-594.45025338,0.00015068,2]
[346347876,1734903043788,-500.0,0.00015068,2]
[346347878,1734903043798,-500.0,0.00015068,2]
[346347881,1734903043807,-500.0,0.00015068,2]
[346347883,1734903043817,-5205.58,0.00015068,2]
[346347885,1734903043826,-500.0,0.00015068,2]
[346347887,1734903043835,-500.0,0.00015068,2]
[346347889,1734903043845,-670.49,0.00015068,2]
[346347891,1734903043854,-500.0,0.00015068,2]
[346347893,1734903043863,-419.2,0.00015068,2]
[346347895,1734903043873,-500.0,0.00015068,2]
[346347897,1734903043882,-500.0,0.00015068,2]
[346347899,1734903043891,-500.0,0.00015068,2]
[346347901,1734903043901,-500.0,0.00015068,2]
[346347903,1734903043910,-1719.91,0.00015068,2]
[346347905,1734903043920,-666.0,0.00015242,2]
[346347907,1734903043930,-2834.95381364,0.00015242,2]
[346347908,1734903043939,-378.15034031,0.00015268,2]
[346347911,1734903043948,-925.74,0.00015341,2]
[346347913,1734903043957,-500.0,0.00015342,2]
[346347915,1734903043967,-500.0,0.00015342,2]
[346347917,1734903043977,-500.0,0.00015342,2]
[346347919,1734903043986,-500.0,0.00015342,2]
[346347921,1734903043995,-500.0,0.00015342,2]
[346347923,1734903044005,-500.0,0.00015342,2]
[346347925,1734903044015,-500.0,0.00015342,2]
[346347927,1734903044025,-1230.55,0.00015342,2]
[346347928,1734903044033,-2645.89,0.00015342,2]
[346347931,1734903044043,-500.0,0.00015342,2]
[346347932,1734903044052,-951.06,0.00015342,2]
[346347934,1734903044062,-500.0,0.00015342,2]
[346347936,1734903044071,-500.0,0.00015342,2]
[346347938,1734903044080,-500.0,0.00015342,2]
[346347939,1734903044090,-500.0,0.00015342,2]
[346347940,1734903044099,-5205.58,0.00015342,2]
[346347941,1734903044109,-500.0,0.00015342,2]
[346347942,1734903044118,-500.0,0.00015342,2]
[346347943,1734903044127,-670.49,0.00015342,2]
[346347944,1734903044136,-500.0,0.00015342,2]
[346347945,1734903044146,-500.0,0.00015342,2]
[346347946,1734903044156,-500.0,0.00015342,2]
[346347947,1734903044165,-500.0,0.00015342,2]
[346347948,1734903044175,-500.0,0.00015342,2]
[346347949,1734903044185,-1719.91,0.00015342,2]
[346347950,1734903044194,-500.0,0.00015379,2]
[346347951,1734903044204,-1000.0,0.00015491,2]
[346347952,1734903044214,-925.74,0.00015615,2]
[346347953,1734903044223,-925.74,0.00015615,2]
[346347954,1734903044233,-925.74,0.00015615,2]
[346347955,1734903044242,-925.74,0.00015615,2]
[346347957,1734903044252,-925.77,0.00015615,2]
[346347958,1734903044261,-500.0,0.00015616,2]
[346347960,1734903044271,-500.0,0.00015616,2]
[346347962,1734903044281,-500.0,0.00015616,2]
[346347964,1734903044290,-500.0,0.00015616,2]
[346347966,1734903044300,-500.0,0.00015616,2]
[346347968,1734903044309,-500.0,0.00015616,2]
[346347970,1734903044318,-500.0,0.00015616,2]
[346347972,1734903044328,-1230.55,0.00015616,2]
[346347974,1734903044338,-2645.89,0.00015616,2]
[346347976,1734903044347,-500.0,0.00015616,2]
[346347978,1734903044356,-951.06,0.00015616,2]
[346347980,1734903044366,-500.0,0.00015616,2]
[346347982,1734903044375,-500.0,0.00015616,2]
[346347984,1734903044385,-500.0,0.00015616,2]
[346347986,1734903044394,-500.0,0.00015616,2]
[346347988,1734903044404,-5205.58,0.00015616,2]
[346347990,1734903044413,-500.0,0.00015616,2]
[346347992,1734903044422,-500.0,0.00015616,2]
[346347994,1734903044431,-670.49,0.00015616,2]
[346347996,1734903044440,-500.0,0.00015616,2]
[346347998,1734903044450,-548.8037056,0.00015616,2]
[346348000,1734903044459,-500.0,0.00015616,2]
[346348002,1734903044469,-500.0,0.00015616,2]
[346348004,1734903044478,-500.0,0.00015616,2]
[346348006,1734903044487,-1719.91,0.00015616,2]
[346348008,1734903044496,-189.59260352,0.00015715,2]
[346348010,1734903044505,-151.0,0.00015815,2]
[346348012,1734903044515,-1500.0,0.00015859,2]
[346348014,1734903044525,-406.31501674,0.0001589,2]
[346348016,1734903044534,-500.0,0.0001589,2]
[346348018,1734903044544,-293.59336323,0.0001589,2]
[346348020,1734903044553,-500.0,0.0001589,2]
[346348022,1734903044562,-500.0,0.0001589,2]
[346348024,1734903044571,-500.0,0.0001589,2]
[346348026,1734903044581,-307.92236763,0.0001589,2]
[346348028,1734903044591,-1230.55,0.0001589,2]
[346348030,1734903044600,-2645.89,0.0001589,2]
[346348032,1734903044609,-500.0,0.0001589,2]
[346348034,1734903044619,-951.06,0.0001589,2]
[346348036,1734903044629,-500.0,0.0001589,2]
[346348038,1734903044638,-500.0,0.0001589,2]
[346348040,1734903044651,-500.0,0.0001589,2]
[346348042,1734903044660,-298.41902883,0.0001589,2]
[346348044,1734903044669,-5205.58,0.0001589,2]
[346348046,1734903044678,-500.0,0.0001589,2]
[346348048,1734903044688,-500.0,0.0001589,2]
[346348050,1734903044698,-670.49,0.0001589,2]
[346348052,1734903044707,-500.0,0.0001589,2]
[346348054,1734903044717,-500.0,0.0001589,2]
[346348056,1734903044727,-500.0,0.0001589,2]
[346348058,1734903044736,-500.0,0.0001589,2]
[346348060,1734903044745,-1719.91,0.0001589,2]
[346348062,1734903044754,-3138.67,0.000161,2]
[346348064,1734903044763,-378.15034031,0.00016153,2]
[346348066,1734903044772,-500.0,0.00016164,2]
[346348068,1734903044781,-500.0,0.00016164,2]
[346348069,1734903044790,-500.0,0.00016164,2]
[346348072,1734903044800,-500.0,0.00016164,2]
[346348073,1734903044810,-1230.55,0.00016164,2]
[346348076,1734903044819,-2645.89,0.00016164,2]
[346348077,1734903044829,-174.30123044,0.00016164,2]
[346348080,1734903044839,-951.06,0.00016164,2]
[346348082,1734903044848,-606.77602911,0.00016164,2]
[346348083,1734903044857,-500.0,0.00016164,2]
[346348086,1734903044867,-332.61102886,0.00016164,2]
[346348088,1734903044876,-5205.58,0.00016164,2]
[346348089,1734903044886,-500.0,0.00016164,2]
[346348091,1734903044896,-500.0,0.00016164,2]
[346348094,1734903044906,-670.49,0.00016164,2]
[346348096,1734903044916,-500.0,0.00016164,2]
[346348098,1734903044925,-500.0,0.00016164,2]
[346348099,1734903044935,-500.0,0.00016164,2]
[346348101,1734903044944,-500.0,0.00016164,2]
[346348103,1734903044953,-1719.91,0.00016164,2]
[346348106,1734903044963,-268.976,0.0001621,2]
[346348108,1734903044973,-500.0,0.00016438,7]
[346348109,1734903044982,-500.0,0.00016438,2]
[346348111,1734903044992,-500.0,0.00016438,2]
[346348113,1734903045002,-500.0,0.00016438,2]
[346348116,1734903045012,-435.12904364,0.00016438,2]
[346348117,1734903045021,-500.0,0.00016438,2]
[346348119,1734903045031,-206.2,0.00016438,3]
[346348122,1734903045041,-317.25489703,0.00016438,2]
[346348123,1734903045050,-500.0,0.00016438,2]
[346348125,1734903045060,-500.0,0.00016438,2]
[346348127,1734903045070,-1230.55,0.00016438,2]
[346348130,1734903045080,-2645.89,0.00016438,2]
[346348131,1734903045089,-951.06,0.00016438,2]
[346348134,1734903045099,-500.0,0.00016438,2]
[346348136,1734903045108,-5205.58,0.00016438,2]
[346348138,1734903045118,-500.0,0.00016438,2]
[346348140,1734903045127,-500.0,0.00016438,2]
[346348142,1734903045137,-670.49,0.00016438,2]
[346348144,1734903045146,-500.0,0.00016438,2]
[346348146,1734903045155,-500.0,0.00016438,2]
[346348148,1734903045165,-622.33120066,0.00016438,2]
[346348150,1734903045174,-500.0,0.00016438,2]
[346348152,1734903045183,-1719.91,0.00016438,2]
[346348154,1734903045194,-415.46957211,0.00016438,2]
[346348156,1734903045203,-1500.0,0.00016493,2]
[346348158,1734903045213,-587.0,0.00016567,2]
[346348160,1734903045223,-500.0,0.00016712,2]
[346348162,1734903045232,-206.2,0.00016712,3]
[346348164,1734903045242,-500.0,0.00016712,2]
[346348166,1734903045251,-500.0,0.00016712,2]
[346348168,1734903045260,-1230.55,0.00016712,2]
[346348170,1734903045269,-2645.89,0.00016712,2]
[346348172,1734903045279,-951.06,0.00016712,2]
[346348174,1734903045288,-500.0,0.00016712,2]
[346348176,1734903045297,-5205.58,0.00016712,2]
[346348178,1734903045307,-500.0,0.00016712,2]
[346348180,1734903045317,-500.0,0.00016712,2]
[346348182,1734903045326,-670.49,0.00016712,2]
[346348184,1734903045335,-500.0,0.00016712,2]
[346348186,1734903045345,-500.0,0.00016712,2]
[346348188,1734903045354,-500.0,0.00016712,2]
[346348190,1734903045363,-1719.91,0.00016712,2]
[346348192,1734903045372,-500.0,0.00016986,2]
[346348194,1734903045381,-206.2,0.00016986,3]
[346348196,1734903045391,-500.0,0.00016986,2]
[346348198,1734903045400,-500.0,0.00016986,2]
[346348200,1734903045409,-1230.55,0.00016986,2]
[346348202,1734903045419,-2645.89,0.00016986,2]
[346348204,1734903045428,-951.06,0.00016986,2]
[346348206,1734903045437,-500.0,0.00016986,2]
[346348208,1734903045447,-5205.58,0.00016986,2]
[346348210,1734903045456,-500.0,0.00016986,2]
[346348212,1734903045465,-225.33956252,0.00016986,2]
[346348214,1734903045475,-670.49,0.00016986,2]
[346348216,1734903045485,-500.0,0.00016986,2]
[346348218,1734903045494,-500.0,0.00016986,2]
[346348220,1734903045504,-500.0,0.00016986,2]
[346348222,1734903045514,-1719.91,0.00016986,2]
[346348224,1734903045525,-378.15034031,0.00017039,2]
[346348226,1734903045535,-332.863,0.000171,2]
[346348228,1734903045545,-2000.0,0.00017156,2]
[346348230,1734903045554,-500.0,0.0001726,2]
[346348232,1734903045564,-206.2,0.0001726,3]
[346348234,1734903045573,-595.19294709,0.0001726,2]
[346348236,1734903045582,-500.0,0.0001726,2]
[346348238,1734903045592,-1230.55,0.0001726,2]
[346348240,1734903045601,-2645.89,0.0001726,2]
[346348242,1734903045612,-951.06,0.0001726,2]
[346348244,1734903045621,-500.0,0.0001726,2]
[346348246,1734903045631,-5205.58,0.0001726,2]
[346348248,1734903045640,-500.0,0.0001726,2]
[346348250,1734903045653,-670.49,0.0001726,2]
[346348252,1734903045662,-500.0,0.0001726,2]
[346348254,1734903045671,-500.0,0.0001726,2]
[346348256,1734903045680,-444.42319768,0.0001726,2]
[346348258,1734903045691,-1719.91,0.0001726,2]
[346348260,1734903045701,-600.0,0.0001728,2]
[346348262,1734903045711,-151.0,0.000174,2]
[346348264,1734903045720,-153.0,0.00017491,2]
[346348266,1734903045730,-500.0,0.00017534,2]
[346348268,1734903045739,-206.2,0.00017534,4]
[346348270,1734903045749,-500.0,0.00017534,2]
[346348272,1734903045759,-1230.55,0.00017534,2]
[346348274,1734903045769,-2645.89,0.00017534,2]
[346348276,1734903045778,-951.06,0.00017534,2]
[346348278,1734903045788,-500.0,0.00017534,2]
[346348280,1734903045797,-5205.58,0.00017534,2]
[346348282,1734903045807,-500.0,0.00017534,2]
[346348284,1734903045817,-670.49,0.00017534,2]
[346348286,1734903045826,-500.0,0.00017534,2]
[346348288,1734903045835,-500.0,0.00017534,2]
[346348290,1734903045844,-1719.91,0.00017534,2]
[346348292,1734903045853,-2000.0,0.0001779,2]
[346348294,1734903045862,-151.0,0.000178,2]
[346348296,1734903045872,-500.0,0.00017808,2]
[346348298,1734903045881,-206.2,0.00017808,4]
[346348300,1734903045891,-500.0,0.00017808,2]
[346348302,1734903045901,-1230.55,0.00017808,2]
[346348304,1734903045910,-2645.89,0.00017808,2]
[346348306,1734903045920,-951.06,0.00017808,2]
[346348308,1734903045930,-333.50773147,0.00017808,2]
[346348310,1734903045939,-5205.58,0.00017808,2]
[346348316,1734903045983,-500.0,0.00017808,2]
[346348318,1734903045993,-670.49,0.00017808,2]
[346348320,1734903046002,-476.09964379,0.00017808,2]
[346348322,1734903046012,-500.0,0.00017808,2]
[346348324,1734903046022,-1719.91,0.00017808,2]
[346348326,1734903046032,-208.3684496,0.0001782,2]
[346348328,1734903046041,-378.15034031,0.00017924,2]
[346348330,1734903046051,-151.0,0.00017999,2]
[346348332,1734903046060,-128954.45517805,0.00018,2]
[346348427,1734903046982,-3805.40000006,0.00018,2]
[346349338,1734903931106,-1542.87252,0.00012539,2]
[346349339,1734903950102,-268.74702,0.00012539,2]
[346349340,1734904029105,-360.10860063,0.00012289,2]
[346349341,1734904029128,-412.39739937,0.00012413,2]
[346349342,1734904041087,-308.7540424,0.00012413,2]
[346349343,1734904041109,-144.92314765,0.00012539,2]
[346349344,1734904146124,-2179.00722085,0.00012539,2]
[346349345,1734904146146,-156.81191579,0.00012962,2]
[346349346,1734904146168,-1808.34606336,0.00013062,2]
[346349347,1734904150120,-1732.40192414,0.00013062,2]
[346349390,1734904232152,-300.0,0.00013697,2]
[346349392,1734904232162,-300.0,0.00013697,2]
[346349394,1734904232171,-500.0,0.00013698,2]
[346349396,1734904232180,-500.0,0.00013698,2]
[346349398,1734904232189,-500.0,0.00013698,2]
[346349400,1734904232198,-240.39461762,0.00013698,2]
[346349402,1734904232207,-500.0,0.00013698,2]
[346349404,1734904232217,-500.0,0.00013698,2]
[346349406,1734904232226,-51.83631928,0.00013698,2]
[346349412,1734904232273,-448.16368072,0.00013698,2]
[346349414,1734904232282,-500.0,0.00013698,2]
[346349416,1734904232291,-500.0,0.00013698,2]
[346349418,1734904232300,-500.0,0.00013698,2]
[346349420,1734904232310,-500.0,0.00013698,2]
[346349422,1734904232319,-500.0,0.00013698,2]
[346349424,1734904232328,-500.0,0.00013698,2]
[346349426,1734904232337,-500.0,0.00013698,2]
[346349428,1734904232346,-500.0,0.00013698,2]
[346349430,1734904232355,-282.77619385,0.00013698,2]
[346349432,1734904232365,-500.0,0.00013698,2]
[346349434,1734904232374,-365.56444822,0.00013698,2]
[346349437,1734904232385,-500.0,0.00013698,2]
[346349439,1734904232394,-500.0,0.00013698,2]
[346349441,1734904232403,-500.0,0.00013698,2]
[346349443,1734904232412,-500.0,0.00013698,2]
[346349445,1734904232421,-500.0,0.00013698,2]
[346349447,1734904232430,-539.46,0.00013698,2]
[346349449,1734904232439,-500.0,0.00013698,2]
[346349451,1734904232448,-500.0,0.00013698,2]
[346349453,1734904232457,-517.00251571,0.00013698,2]
[346349454,1734904232467,-500.0,0.00013698,2]
[346349456,1734904232477,-500.0,0.00013698,2]
[346349458,1734904232486,-500.0,0.00013698,2]
[346349460,1734904232495,-500.0,0.00013698,2]
[346349462,1734904232504,-500.0,0.00013698,2]
[346349464,1734904232518,-500.0,0.00013698,2]
[346349467,1734904232530,-500.0,0.00013698,2]
[346349469,1734904232539,-500.0,0.00013698,2]
[346349471,1734904232549,-500.0,0.00013698,2]
[346349473,1734904232558,-881.96,0.00013698,2]
[346349475,1734904232567,-500.0,0.00013698,2]
[346349477,1734904232576,-469.26731939,0.00013698,2]
[346349479,1734904232585,-500.0,0.00013698,2]
[346349481,1734904232594,-500.0,0.00013698,2]
[346349483,1734904232603,-500.0,0.00013698,2]
[346349485,1734904232612,-500.0,0.00013698,2]
[346349487,1734904232622,-234.0281798,0.00013698,2]
[346349489,1734904232631,-500.0,0.00013698,2]
[346349491,1734904232640,-500.0,0.00013698,2]
[346349493,1734904232649,-2658.32,0.00013698,2]
[346349495,1734904232658,-492.19957759,0.00013698,2]
[346349497,1734904232667,-318.28792653,0.00013698,2]
[346349499,1734904232676,-500.0,0.00013698,2]
[346349501,1734904232685,-500.0,0.00013698,2]
[346349503,1734904232695,-617.22882386,0.00013698,2]
[346349505,1734904232704,-500.0,0.00013698,2]
[346349507,1734904232713,-500.0,0.00013698,2]
[346349509,1734904232723,-500.0,0.00013698,2]
[346349510,1734904232732,-500.0,0.00013698,2]
[346349512,1734904232742,-500.0,0.00013698,2]
[346349514,1734904232750,-500.0,0.00013698,2]
[346349516,1734904232760,-500.0,0.00013698,2]
[346349518,1734904232769,-500.0,0.00013698,2]
[346349520,1734904232778,-500.0,0.00013698,2]
[346349521,1734904232788,-643.59750356,0.00013698,2]
[346349522,1734904232797,-336.6139671,0.00013699,2]
[346349523,1734904232807,-666.0,0.00013872,2]
[346349524,1734904232817,-500.0,0.00013971,2]
[346349525,1734904232826,-500.0,0.00013971,2]
[346349526,1734904232835,-500.0,0.00013971,2]
[346349527,1734904232845,-500.0,0.00013971,2]
[346349528,1734904232854,-511.14729297,0.00013971,2]
[346349529,1734904232863,-339.03339106,0.00013971,2]
[346349530,1734904232872,-192.80480479,0.00013971,2]
[346349531,1734904232881,-500.0,0.00013971,2]
[346349532,1734904232891,-573.31,0.00013971,2]
[346349533,1734904232900,-307.3,0.00013972,2]
[346349534,1734904232909,-334.18362495,0.00013972,2]
[346349535,1734904232918,-390.78,0.00013972,2]
[346349536,1734904232927,-476.35,0.00013972,2]
[346349537,1734904232936,-539.21,0.00013972,2]
[346349538,1734904232945,-500.0,0.00013972,2]
[346349539,1734904232955,-326.91495112,0.00013972,2]
[346349573,1734904238209,-38.06504888,0.00013972,2]
[346349575,1734904238219,-438.62,0.00013972,2]
[346349577,1734904238228,-487.13,0.00013972,2]
[346349579,1734904238238,-611.02,0.00013972,2]
[346349581,1734904238247,-500.0,0.00013972,2]
[346349583,1734904238256,-500.0,0.00013972,2]
[346349585,1734904238269,-591.44,0.00013972,2]
[346349587,1734904238278,-500.0,0.00013972,2]
[346349589,1734904238287,-332.29,0.00013972,2]
[346349591,1734904238296,-153.63970412,0.00013972,2]
[346349593,1734904238309,-438.71029588,0.00013972,2]
[346349595,1734904238319,-407.59,0.00013972,2]
[346349597,1734904238328,-358.34,0.00013972,2]
[346349599,1734904238337,-612.14,0.00013972,2]
[346349601,1734904238347,-881.96,0.00013972,2]
[346349603,1734904238356,-499.56,0.00013972,2]
[346349605,1734904238365,-500.0,0.00013972,2]
[346349607,1734904238374,-378.45,0.00013972,2]
[346349609,1734904238383,-197.2497048,0.00013972,2]
[346349612,1734904238397,-302.7502952,0.00013972,2]
[346349614,1734904238408,-197.25199255,0.00013972,2]
[346349616,1734904238420,-302.74800745,0.00013972,2]
[346349618,1734904238429,-2658.32,0.00013972,2]
[346349620,1734904238440,-500.0,0.00013972,2]
[346349622,1734904238449,-500.0,0.00013972,2]
[346349624,1734904238458,-500.0,0.00013972,2]
[346349626,1734904238467,-469.27,0.00013972,2]
[346349628,1734904238476,-419.51,0.00013972,2]
[346349630,1734904238486,-500.0,0.00013972,2]
[346349632,1734904238495,-400.0,0.00013973,2]
[346349635,1734904238505,-500.0,0.00014213,2]
[346349636,1734904238514,-500.0,0.00014245,2]
[346349638,1734904238525,-573.31,0.00014245,2]
[346349641,1734904238534,-493.59,0.00014246,2]
[346349642,1734904238543,-500.0,0.00014246,2]
[346349645,1734904238553,-500.0,0.00014246,2]
[346349646,1734904238563,-422.84,0.00014246,2]
[346349649,1734904238572,-393.41199255,0.00014246,2]
[346349651,1734904238584,-488.54800745,0.00014246,2]
[346349653,1734904238594,-500.0,0.00014246,2]
[346349655,1734904238602,-167.78771255,0.00014246,2]
[346349657,1734904238617,-368.23228745,0.00014246,2]
[346349659,1734904238626,-500.0,0.00014246,2]
[346349661,1734904238636,-623.10445623,0.00014246,2]
[346349668,1734904238691,-29.86078,0.00014246,2]
[346349671,1734904238702,-2005.35476377,0.00014246,2]
[346349673,1734904238711,-500.0,0.00014246,2]
[346349675,1734904238721,-500.0,0.00014246,2]
[346349677,1734904238730,-500.0,0.00014246,2]
[346349679,1734904238740,-471.15,0.00014246,2]
[346349681,1734904238749,-500.0,0.00014273,2]
[346349683,1734904238758,-152.98712549,0.0001442,2]
[346350271,1734904244285,-19.76441373,0.0001442,2]
[346350273,1734904244295,-500.0,0.00014519,2]
[346350275,1734904244306,-573.31,0.00014519,2]
[346350277,1734904244315,-555.26622834,0.0001452,2]
[346350822,1734905351207,-941.1595343,0.00011526,2]
[346350823,1734905351228,-1404.4984776,0.00012297,2]
[346350824,1734905351249,-1404.4984776,0.00012421,2]
[346350825,1734905351269,-9397.8288628,0.00012424,2]
[346350826,1734905351289,-2634.47002655,0.00012446,2]
[346350827,1734905351310,-24900.0,0.00012564,2]
[346350828,1734905351331,-200.0,0.00012671,2]
[346350829,1734905351354,-500.0,0.00012671,2]
[346350830,1734905351376,-500.0,0.00012671,2]
[346350831,1734905351396,-500.0,0.00012671,2]
[346350832,1734905351417,-240.12634186,0.00012671,2]
[346350833,1734905351441,-500.0,0.00012671,2]
[346350834,1734905351462,-500.0,0.00012671,2]
[346350835,1734905351483,-500.0,0.00012671,2]
[346350836,1734905351505,-500.0,0.00012671,2]
[346350837,1734905351526,-255.88129225,0.00012671,2]
[346350838,1734905351548,-500.0,0.00012671,2]
[346350839,1734905351569,-500.0,0.00012671,2]
[346350840,1734905351592,-500.0,0.00012671,2]
[346350841,1734905351614,-500.0,0.00012671,2]
[346350842,1734905351635,-500.0,0.00012671,2]
[346350843,1734905351656,-500.0,0.00012671,2]
[346350844,1734905351678,-500.0,0.00012671,2]
[346350845,1734905351701,-369.04378913,0.00012671,2]
[346350846,1734905351724,-500.0,0.00012671,2]
[346350847,1734905351745,-500.0,0.00012671,2]
[346350848,1734905351766,-614.47699339,0.00012671,2]
[346350849,1734905351786,-500.0,0.00012671,2]
[346350850,1734905351807,-500.0,0.00012671,2]
[346350851,1734905351830,-500.0,0.00012671,2]
[346350852,1734905351851,-500.0,0.00012671,2]
[346350853,1734905351876,-500.0,0.00012671,2]
[346350854,1734905351898,-500.0,0.00012671,2]
[346350855,1734905351919,-500.0,0.00012671,2]
[346350856,1734905351943,-500.0,0.00012671,2]
[346350857,1734905351965,-500.0,0.00012671,2]
[346350858,1734905351986,-500.0,0.00012671,2]
[346350859,1734905352008,-500.0,0.00012671,2]
[346350860,1734905352030,-500.0,0.00012671,2]
[346350861,1734905352051,-500.0,0.00012671,2]
[346350862,1734905352072,-500.0,0.00012671,2]
[346350863,1734905352095,-500.0,0.00012671,2]
[346350864,1734905352117,-500.0,0.00012671,2]
[346350865,1734905352138,-8152.16460452,0.00012672,2]
[346350866,1734905372133,-474.61213108,0.00012546,2]
[346350867,1734905372155,-447.01906892,0.00012672,2]
[346350914,1734905432627,-27.59306216,0.00012672,2]
[346350916,1734905432636,-206.74977017,0.00013498,2]
[346350918,1734905432645,-738.80147139,0.00013598,2]
[346350920,1734905432655,-300.0,0.00013696,2]
[346350922,1734905432664,-300.0,0.00013696,2]
[346350923,1734905432673,-336.33626233,0.00013697,2]
[346350925,1734905432682,-500.0,0.00013697,2]
[346350927,1734905432692,-500.0,0.00013697,2]
[346350929,1734905432702,-555.54836556,0.00013697,2]
[346350931,1734905432711,-360.01403798,0.00013697,2]
[346350933,1734905432720,-207.67153213,0.00013697,2]
[346350935,1734905432729,-500.0,0.00013697,2]
[346350937,1734905432739,-500.0,0.00013697,2]
[346350938,1734905432750,-290.49744371,0.00013697,2]
[346350940,1734905432759,-500.0,0.00013698,2]
[346350942,1734905432768,-609.83483145,0.00013698,2]
[346350944,1734905432777,-500.0,0.00013698,2]
[346350946,1734905432786,-500.0,0.00013698,2]
[346350948,1734905432795,-500.0,0.00013698,2]
[346350950,1734905432804,-500.0,0.00013698,2]
[346350951,1734905432814,-500.0,0.00013698,2]
[346350953,1734905432823,-500.0,0.00013698,2]
[346350955,1734905432833,-500.0,0.00013698,2]
[346350957,1734905432842,-500.0,0.00013698,2]
[346350959,1734905432851,-500.0,0.00013698,2]
[346350961,1734905432861,-500.0,0.00013698,2]
[346350963,1734905432870,-500.0,0.00013698,2]
[346350964,1734905432880,-500.0,0.00013698,2]
[346350966,1734905432890,-500.0,0.00013698,2]
[346350968,1734905432899,-500.0,0.00013698,2]
[346350970,1734905432908,-625.65196425,0.00013698,2]
[346350972,1734905432918,-500.0,0.00013698,2]
[346350974,1734905432927,-500.0,0.00013698,2]
[346350976,1734905432936,-500.0,0.00013698,2]
[346350978,1734905432945,-500.0,0.00013698,2]
[346350979,1734905432955,-500.0,0.00013698,2]
[346350981,1734905432964,-253.9878414,0.00013698,2]
[346350982,1734905432973,-500.0,0.00013698,2]
[346350984,1734905432982,-500.0,0.00013698,2]
[346350986,1734905432994,-500.0,0.00013698,2]
[346350988,1734905433003,-500.0,0.00013698,2]
[346350990,1734905433012,-500.0,0.00013698,2]
[346350991,1734905433022,-500.0,0.00013698,2]
[346350993,1734905433032,-500.0,0.00013698,2]
[346350995,1734905433042,-500.0,0.00013698,2]
[346350997,1734905433052,-500.0,0.00013698,2]
[346350999,1734905433062,-500.0,0.00013698,2]
[346351001,1734905433071,-500.0,0.00013698,2]
[346351003,1734905433081,-500.0,0.00013698,2]
[346351004,1734905433091,-500.0,0.00013698,2]
[346351006,1734905433101,-500.0,0.00013698,2]
[346351008,1734905433110,-500.0,0.00013698,2]
[346351010,1734905433120,-500.0,0.00013698,2]
[346351012,1734905433130,-500.0,0.00013698,2]
[346351014,1734905433140,-500.0,0.00013698,2]
[346351015,1734905433149,-500.0,0.00013698,2]
[346351017,1734905433159,-168.0,0.00013698,2]